bitfinex/quotes_SOLUSD_20260203
["timestamp","ask_amount","ask_price","bid_price","bid_amount"]
[1770131348657,8.01502084,101.52,101.48,10.32132134]
[1770131348870,8.48388196,101.53,101.49,9.85267955]
[1770131349239,18.33347749,101.53,101.49,9.85267955]
[1770131349855,18.33347749,101.53,101.48,10.321339]
[1770131350054,8.01502084,101.52,101.48,10.321339]
[1770131350368,18.33221759,101.54,101.49,8.48259709]
[1770131350758,25.03433983,101.55,101.48,34.48915888]
[1770131350759,0.4157738,101.55,101.52,0.46757625]
[1770131351056,0.4157738,101.55,101.52,10.31785205]
[1770131351259,0.4157738,101.55,101.52,18.33287289]
[1770131351644,0.4157738,101.55,101.53,8.01502084]
[1770131351868,27.84886112,101.6,101.54,8.48259709]
[1770131352071,27.84886112,101.6,101.52,34.47596531]
[1770131352072,8.48388196,101.58,101.53,0.46757625]
[1770131352255,8.48388196,101.58,101.52,34.47596531]
[1770131352256,0.46886112,101.56,101.52,34.94354156]
[1770131352565,34.44936145,101.6,101.51,10.31832266]
[1770131352566,8.48388196,101.55,101.51,10.31832266]
[1770131352767,0.46886112,101.58,101.52,0.46757625]
[1770131352972,8.01502084,101.56,101.52,0.46757625]
[1770131353145,18.33096514,101.56,101.52,9.85006885]
[1770131353346,8.48388196,101.56,101.52,9.85006885]
[1770131353644,18.3294386,101.57,101.52,42.95835545]
[1770131354348,0.46886112,101.57,101.53,0.46757625]
[1770131354564,0.46886112,101.57,101.53,8.48259709]
[1770131354867,8.48388196,101.57,101.53,0.46757625]
[1770131355162,0.46886112,101.57,101.54,9.84833563]
[1770131355555,4.27527085,101.6,101.55,0.46757625]
[1770131355750,10.3113815,101.6,101.56,8.01502084]
[1770131355984,18.32497349,101.62,101.56,8.48259709]
[1770131356148,8.48388196,101.61,101.56,8.48259709]
[1770131356464,8.01502084,101.6,101.56,0.46757625]
[1770131356846,8.01502084,101.59,101.54,34.93675095]
[1770131357048,8.01502084,101.59,101.55,10.31408833]
[1770131357353,0.46886112,101.6,101.56,8.48259709]
[1770131357558,18.32492284,101.62,101.57,8.48259709]
[1770131357757,0.46886112,101.62,101.58,8.48259709]
[1770131357980,10.30965091,101.62,101.58,8.48259709]
[1770131358172,0.46886112,101.62,101.58,8.48259709]
[1770131358368,10.307901,101.64,101.59,8.01502084]
[1770131358566,0.46886112,101.64,101.6,8.48259709]
[1770131358766,0.56886112,101.65,101.61,8.48259709]
[1770131359174,0.56886112,101.65,101.61,0.46757625]
[1770131359374,0.1,101.65,101.62,0.46757625]
[1770131359780,0.1,101.65,101.61,17.85606656]
[1770131359781,18.42175012,101.65,101.61,9.84104572]
[1770131359989,0.56886112,101.65,101.61,18.32364281]
[1770131360293,0.1,101.65,101.63,8.48259709]
[1770131360582,18.31917146,101.68,101.63,8.48259709]
[1770131360786,27.36,101.7,101.65,8.48000768]
[1770131360787,10.30851314,101.7,101.65,8.48000768]
[1770131360990,0.47567145,101.7,101.66,8.48000768]
[1770131361290,0.47567145,101.69,101.63,0.46498684]
[1770131361494,0.47567145,101.69,101.65,9.83721009]
[1770131361786,8.49069229,101.69,101.65,9.83708184]
[1770131361987,0.47567145,101.68,101.64,0.46498684]
[1770131362165,8.49069229,101.69,101.64,0.46498684]
[1770131362366,8.01502084,101.69,101.64,10.30291648]
[1770131362674,8.49069229,101.67,101.63,9.83920546]
[1770131362991,8.49069229,101.67,101.63,9.83957471]
[1770131363173,8.49069229,101.66,101.58,0.46498684]
[1770131363375,8.49069229,101.64,101.6,9.84191826]
[1770131363578,8.49069229,101.64,101.6,10.3069051]
[1770131363885,8.49069229,101.64,101.61,9.84137459]
[1770131364087,8.49069229,101.64,101.6,0.46498684]
[1770131364267,8.01502084,101.63,101.59,0.46498684]
[1770131364469,8.01502084,101.62,101.59,9.84333228]
[1770131364665,8.49069229,101.63,101.59,9.84333228]
[1770131365082,8.01502084,101.62,101.59,9.84333228]
[1770131365595,8.01502084,101.62,101.58,10.30898576]
[1770131365894,17.85563727,101.62,101.58,34.92012968]
[1770131366185,8.01502084,101.62,101.58,34.92012968]
[1770131366387,24.5971494,101.64,101.59,8.48000768]
[1770131366388,8.01502084,101.64,101.59,8.48000768]
[1770131366794,8.01502084,101.63,101.59,0.46498684]
[1770131367391,0.47567145,101.66,101.6,0.46498684]
[1770131367592,8.49069229,101.68,101.63,8.48000768]
[1770131368096,18.32557415,101.68,101.63,8.48000768]
[1770131368471,0.47567145,101.68,101.64,0.46498684]
[1770131368693,24.55703168,101.71,101.66,0.46498684]
[1770131368894,8.49069229,101.7,101.66,0.46498684]
[1770131369277,6.23424647,101.71,101.68,9.83477576]
[1770131369584,8.01502084,101.69,101.66,9.83625874]
[1770131369790,8.49069229,101.7,101.66,9.83625874]
[1770131370392,0.1,101.71,101.68,0.46498684]
[1770131370695,17.94697525,101.71,101.67,9.83571226]
[1770131370992,8.01502084,101.7,101.67,0.46498684]
[1770131371166,8.49069229,101.7,101.66,9.83620428]
[1770131371367,8.49069229,101.69,101.65,9.83725852]
[1770131371585,8.01502084,101.68,101.65,9.83725852]
[1770131371781,8.01502084,101.68,101.64,10.30314769]
[1770131371995,8.01502084,101.68,101.65,9.83748401]
[1770131372581,0.47567145,101.66,101.63,9.83950742]
[1770131372775,8.01502084,101.64,101.61,9.84108393]
[1770131373089,8.01502084,101.63,101.59,0.46498684]
[1770131373294,8.01502084,101.63,101.6,9.8422193]
[1770131373478,10.31434409,101.64,101.6,10.30720614]
[1770131373479,7.99069229,101.64,101.6,10.30720614]
[1770131373683,8.01502084,101.63,101.6,10.30720614]
[1770131373893,14.11240149,101.66,101.6,34.91350535]
[1770131374101,8.01502084,101.64,101.6,34.91350535]
[1770131374475,8.01502084,101.63,101.6,34.91350535]
[1770131374682,8.01502084,101.64,101.61,0.46498684]
[1770131374876,8.01502084,101.66,101.62,0.46498684]
[1770131375079,14.11048586,101.68,101.64,0.46498684]
[1770131375080,8.01502084,101.68,101.64,0.46498684]
[1770131375279,0.1,101.71,101.66,9.8367106]
[1770131375280,8.01502084,101.69,101.66,9.8367106]
[1770131375495,17.84903038,101.69,101.65,10.30219283]
[1770131375794,8.01502084,101.67,101.64,9.83846081]
[1770131375981,8.01502084,101.68,101.64,0.46498684]
[1770131376181,17.84903038,101.69,101.65,9.83739205]
[1770131376379,8.01502084,101.7,101.66,0.46498684]
[1770131376706,0.2,101.73,101.68,0.46498684]
[1770131376884,8.33079464,101.75,101.7,8.48000768]
[1770131377088,2.47215037,101.77,101.75,0.46498684]
[1770131377278,17.83917227,101.79,101.75,0.46498684]
[1770131377482,8.01502084,101.78,101.73,10.29441077]
[1770131377671,8.01502084,101.78,101.72,32.59089732]
[1770131377672,8.01502084,101.76,101.72,9.83087018]
[1770131377890,8.49069229,101.77,101.72,8.48000768]
[1770131378400,8.01502084,101.77,101.73,0.46498684]
[1770131378601,8.01502084,101.76,101.73,10.29464392]
[1770131378791,8.01502084,101.77,101.73,10.29464392]
[1770131378986,8.49069229,101.76,101.71,8.48000768]
[1770131379194,0.47567145,101.77,101.71,0.46498684]
[1770131379382,8.01502084,101.75,101.71,10.29651222]
[1770131379590,8.01502084,101.73,101.69,0.46498684]
[1770131379902,8.01502084,101.73,101.7,9.8325673]
[1770131380083,8.01502084,101.73,101.69,10.29842634]
[1770131380278,8.01502084,101.73,101.7,9.83265941]
[1770131380704,8.01502084,101.73,101.69,10.29848529]
[1770131380903,8.01502084,101.7,101.67,9.83520119]
[1770131381114,8.01502084,101.71,101.67,10.30018803]
[1770131381287,8.01502084,101.72,101.68,0.46498684]
[1770131381485,8.01502084,101.71,101.67,0.46498684]
[1770131381784,8.01502084,101.71,101.66,8.01502084]
[1770131381785,8.01502084,101.69,101.66,9.83628542]
[1770131382003,8.01502084,101.7,101.66,10.30127226]
[1770131382581,0.47567145,101.68,101.64,0.46498684]
[1770131382780,8.01502084,101.67,101.63,10.30409989]
[1770131383185,8.01502084,101.66,101.63,10.30409989]
[1770131383586,8.01502084,101.67,101.63,10.30440233]
[1770131383907,8.01502084,101.66,101.63,10.30440233]
[1770131384202,8.01502084,101.67,101.63,34.90343804]
[1770131384390,8.01502084,101.68,101.64,0.46498684]
[1770131384786,8.01502084,101.67,101.63,34.4384512]
[1770131385006,8.01502084,101.66,101.63,9.83941549]
[1770131385212,8.49069229,101.67,101.63,9.83941549]
[1770131385700,8.01502084,101.66,101.63,9.83941549]
[1770131386401,7.97345737,101.7,101.65,8.43844421]
[1770131386581,7.97345737,101.7,101.66,0.46498684]
[1770131387305,8.44912882,101.69,101.64,0.46498684]
[1770131387494,7.97345737,101.68,101.64,0.46498684]
[1770131387690,8.44912882,101.67,101.62,24.60099523]
[1770131387890,7.97345737,101.65,101.62,24.60099523]
[1770131388092,0.50138147,101.67,101.62,24.60099523]
[1770131388292,7.47483884,101.67,101.63,9.8391509]
[1770131388516,9.83503952,101.68,101.64,9.83861198]
[1770131388688,7.97345737,101.67,101.63,9.83909175]
[1770131389582,7.97345737,101.66,101.63,9.83909175]
[1770131390007,17.81033792,101.66,101.61,7.97345737]
[1770131390192,7.97345737,101.64,101.61,9.84107634]
[1770131390604,7.97345737,101.64,101.6,10.32823164]
[1770131391110,10.30011503,101.67,101.62,9.8405154]
[1770131391284,0.46414472,101.66,101.62,9.8405154]
[1770131391491,0.46414472,101.68,101.63,8.45973698]
[1770131391889,8.43760209,101.68,101.63,8.45973698]
[1770131392091,0.46414472,101.68,101.64,9.8386462]
[1770131392314,0.46414472,101.68,101.64,42.40871907]
[1770131392609,8.43760209,101.67,101.63,9.83911937]
[1770131392814,8.43760209,101.66,101.62,9.83996327]
[1770131393114,8.43760209,101.66,101.61,10.32736706]
[1770131393115,7.97345737,101.65,101.61,10.32736706]
[1770131393315,8.45021755,101.65,101.61,9.84108745]
[1770131393616,7.97345737,101.69,101.64,8.4657154]
[1770131393908,8.45021755,101.69,101.64,8.4657154]
[1770131394118,18.28461456,101.69,101.65,9.8376783]
[1770131394598,18.28461456,101.69,101.64,18.30383284]
[1770131395889,17.80785438,101.69,101.64,18.30383284]
[1770131396090,8.45021755,101.68,101.64,34.92699097]
[1770131396302,0.47676018,101.68,101.64,42.90044834]
[1770131396699,0.47676018,101.68,101.64,9.83811744]
[1770131396904,18.28518118,101.68,101.64,9.83811744]
[1770131397099,7.97345737,101.65,101.61,9.84107288]
[1770131397303,7.97345737,101.63,101.6,9.84195912]
[1770131397498,7.97345737,101.63,101.59,9.84299731]
[1770131397718,7.97345737,101.62,101.6,9.84246962]
[1770131397918,7.97345737,101.63,101.59,9.84299036]
[1770131398717,17.81321517,101.63,101.59,9.84299036]
[1770131399136,7.97345737,101.62,101.59,9.84299036]
[1770131399424,7.97345737,101.62,101.58,10.33632402]
[1770131399817,18.28997535,101.63,101.58,18.30978139]
[1770131400199,0.47676018,101.62,101.57,9.84500686]
[1770131400394,0.47676018,101.62,101.56,0.49225803]
[1770131400610,8.45021755,101.62,101.58,9.84430305]
[1770131400801,8.45021755,101.63,101.58,42.42890434]
[1770131401004,8.45021755,101.63,101.58,42.92116237]
[1770131401325,8.45021755,101.63,101.58,10.33656108]
[1770131401516,0.47676018,101.62,101.58,9.84430305]
[1770131401720,8.45021755,101.62,101.58,9.84430305]
[1770131401909,8.45021755,101.62,101.57,18.31065604]
[1770131402101,34.43570845,101.64,101.56,10.33792845]
[1770131402102,7.97345737,101.6,101.56,10.33792845]
[1770131402296,0.47676018,101.63,101.58,8.4657154]
[1770131402618,0.47676018,101.67,101.63,0.49225803]
[1770131402926,0.47676018,101.69,101.65,7.97345737]
[1770131403129,39.32074259,101.73,101.67,7.97345737]
[1770131403130,0.47676018,101.71,101.67,7.97345737]
[1770131403425,8.45021755,101.72,101.67,8.4657154]
[1770131403728,0.47676018,101.72,101.68,7.97345737]
[1770131403918,0.47676018,101.71,101.67,7.97345737]
[1770131404124,8.45021755,101.7,101.65,8.4657154]
[1770131404321,0.47676018,101.71,101.67,7.97345737]
[1770131404532,0.47676018,101.7,101.65,9.8372226]
[1770131404848,0.47676018,101.65,101.61,17.81465256]
[1770131405012,7.97345737,101.66,101.6,25.09661148]
[1770131405013,8.45021755,101.64,101.6,9.84201647]
[1770131405215,7.97345737,101.65,101.6,42.91403108]
[1770131405428,8.45021755,101.65,101.6,42.91403108]
[1770131405728,8.45021755,101.65,101.6,18.30773187]
[1770131405931,7.97345737,101.64,101.6,10.3342745]
[1770131406127,8.45021755,101.64,101.6,9.84201647]
[1770131406325,0.47676018,101.61,101.57,7.97345737]
[1770131406673,0.47676018,101.61,101.57,9.8449937]
[1770131406674,8.45021755,101.61,101.57,9.8449937]
[1770131406808,8.45021755,101.6,101.55,32.59050838]
[1770131407015,8.45021755,101.6,101.56,9.84600429]
[1770131407240,8.45021755,101.6,101.55,18.31258446]
[1770131407414,0.47676018,101.59,101.56,9.84623576]
[1770131407608,8.45021755,101.59,101.55,9.84694595]
[1770131407830,8.45021755,101.57,101.53,9.84878202]
[1770131408039,8.45021755,101.56,101.53,9.84878329]
[1770131408337,8.45021755,101.56,101.5,0.2]
[1770131408338,8.45021755,101.55,101.5,24.8286145]
[1770131408528,8.45021755,101.53,101.5,0.2]
[1770131408737,7.97345737,101.52,101.5,0.2]
[1770131408931,8.45021755,101.53,101.5,0.2]
[1770131409520,7.97345737,101.54,101.5,10.05217579]
[1770131409724,7.97345737,101.54,101.5,10.05166764]
[1770131409725,8.45021755,101.54,101.5,10.05166764]
[1770131409922,0.47676018,101.56,101.52,17.82371903]
[1770131410337,0.47676018,101.55,101.51,17.82402662]
[1770131410547,8.45021755,101.55,101.5,18.02522609]
[1770131410745,8.45021755,101.54,101.5,0.2]
[1770131410943,8.45021755,101.53,101.5,0.2]
[1770131411146,0.47676018,101.53,101.5,0.2]
[1770131411334,9.84749573,101.55,101.5,8.17345737]
[1770131411335,7.97345737,101.54,101.5,8.17345737]
[1770131411537,8.45021755,101.54,101.5,18.02564272]
[1770131412050,8.45021755,101.52,101.5,0.2]
[1770131412256,7.97345737,101.51,101.5,0.2]
[1770131412451,0.47676018,101.52,101.5,0.2]
[1770131412452,7.97345737,101.52,101.5,0.2]
[1770131412640,7.97345737,101.53,101.5,0.2]
[1770131413031,10.32548426,101.54,101.5,10.051962]
[1770131413229,7.97345737,101.53,101.5,0.2]
[1770131414141,8.45021755,101.54,101.5,10.05195163]
[1770131414528,8.45021755,101.54,101.5,18.025409]
[1770131414932,7.97345737,101.53,101.5,10.05195163]
[1770131415144,7.97345737,101.52,101.5,10.05186551]
[1770131415340,0.47676018,101.54,101.5,10.05186551]
[1770131415542,8.45021755,101.54,101.5,10.05186551]
[1770131415750,7.97345737,101.54,101.5,10.54412354]
[1770131416139,7.97345737,101.53,101.5,0.69225803]
[1770131416429,7.97345737,101.53,101.5,0.2]
[1770131416641,7.97345737,101.52,101.5,0.2]
[1770131416855,7.97345737,101.53,101.5,0.2]
[1770131417457,7.97345737,101.52,101.5,0.2]
[1770131418538,7.97345737,101.51,101.5,0.2]
[1770131418953,7.97345737,101.53,101.5,0.2]
[1770131419153,7.97345737,101.52,101.5,10.05217656]
[1770131419346,8.45021755,101.53,101.5,0.2]
[1770131419534,7.97345737,101.52,101.5,0.2]
[1770131420959,18.29974188,101.53,101.5,0.2]
[1770131421345,7.97345737,101.52,101.5,0.2]
[1770131421746,8.42443221,101.55,101.5,18.50376283]
[1770131421942,7.97345737,101.54,101.5,43.1343047]
[1770131422374,8.42443221,101.59,101.54,0.47841193]
[1770131422550,8.42443221,101.6,101.55,42.91764969]
[1770131422753,18.2661048,101.61,101.56,8.4518693]
[1770131423051,18.2661048,101.61,101.56,0.47841193]
[1770131423361,8.42443221,101.61,101.56,8.4518693]
[1770131423957,8.42443221,101.57,101.52,8.4518693]
[1770131424154,7.97345737,101.56,101.53,9.84883392]
[1770131424342,7.97345737,101.55,101.52,9.84977877]
[1770131424536,7.97345737,101.55,101.51,34.47905851]
[1770131424845,9.84587484,101.57,101.52,0.47841193]
[1770131425040,7.97345737,101.56,101.52,0.47841193]
[1770131425355,7.97345737,101.55,101.51,34.47905851]
[1770131425754,7.97345737,101.54,101.51,34.47905851]
[1770131426258,7.97345737,101.53,101.5,10.05197561]
[1770131426459,7.97345737,101.52,101.5,0.2]
[1770131426655,7.97345737,101.54,101.5,18.50366279]
[1770131426868,7.97345737,101.54,101.5,43.13420466]
[1770131427477,8.42443221,101.55,101.5,43.13420466]
[1770131427773,7.97345737,101.53,101.5,10.05179349]
[1770131427963,8.42443221,101.53,101.5,10.05179349]
[1770131428457,0.45097484,101.52,101.5,0.2]
[1770131428664,0.45097484,101.5,101.47,9.85418938]
[1770131428866,7.97345737,101.5,101.46,0.47841193]
[1770131429046,7.97345737,101.5,101.47,9.85499797]
[1770131429866,7.97345737,101.5,101.46,0.47841193]
[1770131430169,7.97345737,101.5,101.46,9.85595213]
[1770131430170,7.97345737,101.49,101.46,9.85595213]
[1770131430468,7.97345737,101.49,101.46,9.8560056]
[1770131430669,7.97345737,101.49,101.45,9.85707244]
[1770131430863,7.97345737,101.48,101.44,34.98070983]
[1770131431059,8.42443221,101.49,101.44,42.9541672]
[1770131431362,18.27769916,101.49,101.44,42.9541672]
[1770131431568,7.97345737,101.47,101.44,10.33591113]
[1770131431868,8.42443221,101.48,101.44,10.33591113]
[1770131432073,0.45097484,101.48,101.44,42.95447891]
[1770131432358,0.45097484,101.5,101.46,8.4518693]
[1770131432569,0.45097484,101.5,101.46,17.8286352]
[1770131433071,8.42443221,101.49,101.45,7.97345737]
[1770131433271,8.42443221,101.48,101.45,9.85683061]
[1770131433575,9.85258323,101.5,101.45,9.85683061]
[1770131433576,7.97345737,101.49,101.46,9.85601756]
[1770131433742,0.45097484,101.5,101.46,34.9746818]
[1770131434249,8.42443221,101.5,101.46,17.82947493]
[1770131434451,0.45097484,101.5,101.46,17.82947493]
[1770131434651,0.45097484,101.5,101.46,42.46972724]
[1770131434850,8.42443221,101.5,101.46,34.49626987]
[1770131435046,10.30149625,101.52,101.47,7.97345737]
[1770131435367,0.45097484,101.52,101.48,7.97345737]
[1770131435550,8.42443221,101.52,101.48,7.97345737]
[1770131435744,18.27486309,101.52,101.47,8.4518693]
[1770131435960,0.45097484,101.52,101.48,7.97345737]
[1770131436165,18.2731349,101.54,101.49,7.97345737]
[1770131436468,0.45097484,101.54,101.5,7.97345737]
[1770131436685,0.45097484,101.55,101.52,9.8502758]
[1770131437151,0.45097484,101.55,101.52,17.82373317]
[1770131437475,0.45097484,101.57,101.53,7.97345737]
[1770131437764,0.45097484,101.59,101.56,7.97345737]
[1770131437958,0.45097484,101.61,101.57,7.97345737]
[1770131438357,18.26477186,101.63,101.58,7.97345737]
[1770131438571,17.81337403,101.63,101.58,7.97345737]
[1770131438769,0.45097484,101.62,101.59,9.84348853]
[1770131439267,0.45097484,101.6,101.55,0.47841193]
[1770131439469,0.45097484,101.6,101.57,7.97345737]
[1770131439775,0.45097484,101.6,101.56,7.97345737]
[1770131439955,0.45097484,101.6,101.57,9.84505285]
[1770131440266,0.45097484,101.61,101.58,9.8444398]
[1770131440448,8.42443221,101.61,101.58,9.8444398]
[1770131440656,8.42443221,101.6,101.57,9.84498237]
[1770131440849,8.42443221,101.6,101.56,34.46181134]
[1770131441050,0.45097484,101.6,101.56,42.43526871]
[1770131441250,0.45097484,101.6,101.56,9.84639621]
[1770131441251,8.42443221,101.6,101.56,9.84639621]
[1770131441456,18.2670239,101.6,101.56,9.84639621]
[1770131441662,0.45097484,101.6,101.56,9.84639621]
[1770131441870,8.42443221,101.6,101.56,9.84639621]
[1770131442070,18.26697267,101.6,101.56,9.84639621]
[1770131442263,8.42443221,101.6,101.56,9.84639621]
[1770131442462,0.45097484,101.6,101.56,17.81985358]
[1770131442655,7.97345737,101.61,101.56,42.91425605]
[1770131442853,0.45097484,101.62,101.58,18.29632687]
[1770131443068,0.45097484,101.62,101.59,7.97345737]
[1770131443587,0.45097484,101.64,101.6,7.97345737]
[1770131443751,0.45097484,101.62,101.58,9.84445757]
[1770131443950,8.42443221,101.6,101.55,8.4518693]
[1770131444202,7.97345737,101.59,101.57,9.84539585]
[1770131444560,7.97345737,101.59,101.56,9.84593868]
[1770131444760,7.97345737,101.59,101.55,33.06841761]
[1770131444761,8.42443221,101.58,101.53,8.4518693]
[1770131444977,8.42443221,101.58,101.54,42.44189628]
[1770131445157,7.97345737,101.59,101.54,42.92030821]
[1770131445357,7.97345737,101.59,101.55,8.4518693]
[1770131445581,8.42443221,101.61,101.56,7.97345737]
[1770131445758,18.26612817,101.61,101.56,7.97345737]
[1770131445957,8.42443221,101.61,101.56,7.97345737]
[1770131446153,8.42443221,101.61,101.57,7.97345737]
[1770131446383,8.42443221,101.61,101.56,7.98761207]
[1770131446384,8.43858691,101.6,101.56,7.98761207]
[1770131446678,8.43858691,101.6,101.55,0.47841193]
[1770131446679,7.98761207,101.59,101.55,0.47841193]
[1770131446862,8.43858691,101.59,101.55,0.47841193]
[1770131447062,0.45097484,101.59,101.56,9.84639621]
[1770131447583,8.43858691,101.58,101.55,9.84706046]
[1770131447793,8.43858691,101.58,101.49,78.81920509]
[1770131447794,0.45097484,101.55,101.51,18.31650496]
[1770131448023,7.98761207,101.52,101.48,10.33257038]
[1770131448187,0.45097484,101.53,101.48,34.96796651]
[1770131448188,7.98761207,101.51,101.48,34.96796651]
[1770131448696,7.98761207,101.52,101.48,34.96796651]
[1770131448886,7.98761207,101.52,101.48,42.95557858]
[1770131449095,8.43858691,101.53,101.48,42.95557858]
[1770131449299,0.45097484,101.49,101.45,32.72086188]
[1770131449596,8.43858691,101.5,101.47,9.85464475]
[1770131449924,8.43858691,101.48,101.43,25.12402663]
[1770131450085,8.43858691,101.48,101.43,33.1116387]
[1770131450283,7.98761207,101.46,101.44,9.8577631]
[1770131450592,7.98761207,101.47,101.45,9.85693386]
[1770131450790,7.98761207,101.47,101.44,9.85757293]
[1770131451021,7.98761207,101.47,101.45,9.85706024]
[1770131451396,8.43858691,101.48,101.44,34.50315457]
[1770131451732,0.45172544,101.47,101.43,9.85856149]
[1770131451908,8.43933751,101.47,101.43,34.50610166]
[1770131452099,7.98761207,101.46,101.43,9.85856149]
[1770131452502,7.98761207,101.44,101.41,9.86074994]
[1770131452714,7.98761207,101.43,101.41,9.86074994]
[1770131452891,8.48763278,101.42,101.39,0.2]
[1770131453094,7.98761207,101.41,101.39,0.2]
[1770131453690,8.48763278,101.42,101.39,10.06277578]
[1770131453895,8.48763278,101.42,101.39,0.2]
[1770131454195,7.98761207,101.41,101.39,0.2]
[1770131454712,8.48763278,101.42,101.39,10.06285911]
[1770131454913,8.48763278,101.42,101.39,0.2]
[1770131455088,8.48763278,101.4,101.38,0.2]
[1770131455285,8.48763278,101.4,101.33,27.36]
[1770131455286,0.50002071,101.38,101.34,9.8674816]
[1770131455500,7.98761207,101.37,101.33,10.34193117]
[1770131456024,7.98761207,101.36,101.33,10.34193117]
[1770131456409,7.98761207,101.39,101.34,8.46117398]
[1770131457017,7.98761207,101.35,101.32,0.47356191]
[1770131457421,17.85449262,101.35,101.3,18.33242248]
[1770131457620,7.98761207,101.33,101.29,31.76980331]
[1770131457805,7.98761207,101.32,101.29,31.76980331]
[1770131458006,34.5338761,101.35,101.29,31.76980331]
[1770131458007,7.98761207,101.31,101.29,31.76980331]
[1770131458219,34.5338761,101.35,101.29,41.64227969]
[1770131458220,7.98761207,101.32,101.29,41.64227969]
[1770131458523,7.98761207,101.33,101.3,0.47356191]
[1770131458719,7.98761207,101.32,101.29,9.8725708]
[1770131459023,0.40250909,101.33,101.29,9.8725708]
[1770131459221,7.98761207,101.31,101.27,0.47356191]
[1770131459520,0.40250909,101.33,101.27,0.47356191]
[1770131459521,7.98761207,101.32,101.28,0.47356191]
[1770131459819,7.98761207,101.31,101.28,0.47356191]
[1770131460606,7.98761207,101.29,101.24,0.78933571]
[1770131460805,7.98761207,101.27,101.24,0.78933571]
[1770131461005,0.4024959,101.29,101.24,25.48206146]
[1770131461006,7.98761207,101.28,101.24,25.48206146]
[1770131461214,7.98761207,101.29,101.26,9.87556784]
[1770131461419,0.40248286,101.31,101.26,10.34912975]
[1770131461420,7.98761207,101.3,101.26,10.34912975]
[1770131461812,7.98761207,101.3,101.26,43.02566143]
[1770131462013,7.98761207,101.29,101.26,0.47356191]
[1770131462209,7.98761207,101.27,101.24,0.3157738]
[1770131462423,0.40246997,101.28,101.24,0.3157738]
[1770131462624,7.98761207,101.29,101.25,10.35010511]
[1770131462824,7.98761207,101.27,101.24,10.19286648]
[1770131463028,7.98761207,101.27,101.24,0.3157738]
[1770131463029,7.98761207,101.26,101.24,0.3157738]
[1770131463230,0.40246997,101.27,101.24,0.3157738]
[1770131463231,7.98761207,101.25,101.24,0.3157738]
[1770131463408,8.3900693,101.25,101.22,0.2]
[1770131463614,39.49516721,101.28,101.22,0.2]
[1770131463615,0.40245723,101.26,101.22,10.07947046]
[1770131463839,7.98761207,101.26,101.22,10.07947046]
[1770131464040,8.3900693,101.29,101.24,8.46117398]
[1770131464332,7.98761207,101.3,101.25,8.46117398]
[1770131464532,8.39005671,101.3,101.25,8.46117398]
[1770131465216,7.98761207,101.29,101.25,0.47356191]
[1770131465411,17.86046931,101.29,101.25,10.34964595]
[1770131465632,7.98761207,101.31,101.27,0.47356191]
[1770131466434,7.98761207,101.33,101.28,8.46117398]
[1770131466613,8.39003195,101.34,101.29,8.46117398]
[1770131467220,0.40241988,101.34,101.29,8.46117398]
[1770131467425,7.98761207,101.34,101.31,9.8706939]
[1770131467922,7.98761207,101.34,101.3,10.34475717]
[1770131468235,8.39000776,101.34,101.3,9.87119526]
[1770131468437,7.98761207,101.33,101.29,10.34576636]
[1770131468622,8.39000776,101.34,101.3,9.87126717]
[1770131468825,8.39000776,101.34,101.28,9.87279618]
[1770131468826,7.98761207,101.32,101.28,9.87279618]
[1770131469140,7.98761207,101.31,101.28,9.87279618]
[1770131469441,7.98761207,101.31,101.28,9.87361769]
[1770131469735,8.38999587,101.32,101.28,9.87361769]
[1770131469928,7.98761207,101.35,101.3,8.46117398]
[1770131470231,7.98761207,101.33,101.28,43.0188359]
[1770131470430,7.98761207,101.32,101.28,35.03122383]
[1770131470818,7.98761207,101.32,101.28,10.3471796]
[1770131471518,17.85742083,101.32,101.28,10.3471796]
[1770131471717,7.98761207,101.31,101.28,9.87361769]
[1770131471916,17.85742083,101.32,101.28,9.87361769]
[1770131472136,7.98761207,101.3,101.25,0.47356191]
[1770131472436,7.98761207,101.3,101.26,9.87511855]
[1770131472731,7.98761207,101.3,101.26,10.34870426]
[1770131472939,7.98761207,101.31,101.27,10.34760584]
[1770131473443,8.38994967,101.31,101.27,9.87404393]
[1770131473625,17.85737257,101.32,101.28,0.47356191]
[1770131475238,17.85737257,101.32,101.26,10.34878356]
[1770131475239,7.98761207,101.3,101.26,10.34878356]
[1770131475831,7.98761207,101.3,101.25,32.67704539]
[1770131475832,7.98761207,101.29,101.25,9.87603131]
[1770131476028,10.2739836,101.3,101.24,9.8766354]
[1770131476029,8.3899164,101.27,101.24,9.8766354]
[1770131476232,7.98761207,101.26,101.23,9.87799084]
[1770131477827,17.86336558,101.26,101.22,10.55251224]
[1770131478035,7.98761207,101.26,101.22,10.55251224]
[1770131478425,17.86322663,101.26,101.22,10.55251224]
[1770131478627,7.98761207,101.23,101.22,0.2]
[1770131478823,7.98761207,101.23,101.21,41.44236411]
[1770131479047,8.38989485,101.25,101.21,51.79624591]
[1770131479619,120.55200888,101.29,101.23,0.47356191]
[1770131479620,17.86237569,101.27,101.23,0.47356191]
[1770131479824,25.08781582,101.28,101.24,9.87751876]
[1770131479825,8.38988426,101.28,101.24,9.87751876]